bitfinex/quotes_BTCUSD_20241208
["timestamp","ask_amount","ask_price","bid_price","bid_amount"]
[1733659433881,0.19060058,99729.0,99727.0,0.029]
[1733659434506,0.19060058,99729.0,99727.0,0.025]
[1733659434707,0.19060058,99729.0,99727.0,0.023]
[1733659434931,0.19160058,99729.0,99727.0,0.023]
[1733659435140,0.19360058,99729.0,99727.0,0.023]
[1733659436044,0.01311158,99729.0,99727.0,0.023]
[1733659436985,0.01311158,99729.0,99714.0,0.18101813]
[1733659436986,0.003,99729.0,99728.0,0.0988]
[1733659437848,0.002,99729.0,99728.0,0.0988]
[1733659438072,0.180469,99740.0,99729.0,0.023]
[1733659438295,0.10002951,99739.0,99729.0,0.023]
[1733659439380,0.0017314,99740.0,99729.0,0.02350193]
[1733659439614,0.0067314,99740.0,99731.0,0.023]
[1733659439822,0.0067314,99740.0,99732.0,0.00050179]
[1733659440254,0.0087314,99740.0,99732.0,0.00050179]
[1733659440701,0.0067314,99740.0,99732.0,0.00050179]
[1733659440943,0.0027314,99740.0,99732.0,0.00050179]
[1733659441153,0.00670385,99739.0,99732.0,0.00050179]
[1733659441394,0.01170385,99739.0,99732.0,0.00050179]
[1733659441603,0.180472,99738.0,99729.0,0.0235018]
[1733659441828,0.00670385,99739.0,99729.0,0.023]
[1733659442068,0.00673651,99737.0,99730.0,0.0005018]
[1733659442268,0.0027314,99740.0,99729.0,0.02350181]
[1733659442477,0.00673651,99736.0,99730.0,0.0005018]
[1733659442693,0.001,99739.0,99729.0,0.02350181]
[1733659442905,0.00673651,99735.0,99729.0,0.02350181]
[1733659443081,0.001,99739.0,99729.0,0.02350181]
[1733659443405,0.001,99739.0,99730.0,0.0005018]
[1733659443610,0.00673651,99738.0,99730.0,0.0005018]
[1733659443830,0.00673651,99738.0,99729.0,0.02350181]
[1733659444255,0.001,99737.0,99729.0,0.02350181]
[1733659444664,0.00673651,99736.0,99730.0,0.0005018]
[1733659444880,0.00673651,99736.0,99729.0,0.02350181]
[1733659445105,0.001,99738.0,99729.0,0.02350181]
[1733659445283,0.0017314,99740.0,99729.0,0.02350181]
[1733659445519,0.00773651,99737.0,99729.0,0.02350181]
[1733659445727,0.0017314,99740.0,99729.0,0.02350181]
[1733659445728,0.180473,99738.0,99729.0,0.02350181]
[1733659445927,0.00673651,99736.0,99729.0,0.023]
[1733659446160,0.180473,99738.0,99729.0,0.023]
[1733659446367,0.00673651,99735.0,99729.0,0.023]
[1733659446594,0.180473,99738.0,99729.0,0.023]
[1733659446774,0.00673651,99734.0,99729.0,0.023]
[1733659447020,0.180473,99738.0,99729.0,0.023]
[1733659447228,0.00673651,99733.0,99729.0,0.023]
[1733659447426,0.180473,99738.0,99723.0,0.023]
[1733659447690,0.00673651,99732.0,99729.0,0.001]
[1733659447901,0.10002951,99737.0,99729.0,0.001]
[1733659447902,0.18048,99734.0,99729.0,0.001]
[1733659448105,0.18048,99734.0,99723.0,0.023]
[1733659448315,0.180483,99732.0,99723.0,0.023]
[1733659448790,0.00449777,99731.0,99723.0,0.023]
[1733659449000,0.00449777,99731.0,99729.0,0.001]
[1733659449692,0.00674665,99731.0,99730.0,0.023]
[1733659450363,0.0044994,99731.0,99730.0,0.023]
[1733659450573,0.00674724,99731.0,99729.0,0.001]
[1733659450791,0.180487,99730.0,99729.0,0.001]
[1733659451007,0.180487,99730.0,99716.0,0.1221]
[1733659451008,0.180487,99730.0,99717.0,0.023]
[1733659451219,0.180495,99726.0,99717.0,0.023]
[1733659451632,0.00449569,99725.0,99717.0,0.023]
[1733659452049,0.00674353,99725.0,99717.0,0.023]
[1733659452483,0.00674353,99725.0,99718.0,0.00050206]
[1733659452695,0.01025573,99730.0,99724.0,0.023]
[1733659452917,0.01025573,99730.0,99724.0,0.023502]
[1733659453148,0.180479,99735.0,99724.0,0.023502]
[1733659453379,0.28050851,99735.0,99724.0,0.000502]
[1733659453599,0.180481,99733.0,99724.0,0.000502]
[1733659453826,0.180481,99733.0,99721.0,0.02350201]
[1733659454033,0.001,99725.0,99721.0,0.02350201]
[1733659454247,0.180481,99733.0,99724.0,0.001]
[1733659454248,0.00674308,99732.0,99724.0,0.001]
[1733659454467,0.180481,99733.0,99724.0,0.002]
[1733659454674,0.00674308,99731.0,99725.0,0.023]
[1733659454907,0.180481,99733.0,99721.0,0.00050201]
[1733659455135,0.180481,99733.0,99722.0,0.023]
[1733659455349,0.00674308,99732.0,99722.0,0.023]
[1733659456873,0.00674308,99732.0,99724.0,0.001]
[1733659457106,0.00674308,99732.0,99721.0,0.02350201]
[1733659457312,0.180485,99731.0,99725.0,0.001]
[1733659457743,0.180485,99731.0,99722.0,0.025]
[1733659458159,0.00674308,99730.0,99720.0,0.03046905]
[1733659458389,0.00674308,99730.0,99722.0,0.023]
[1733659458616,0.00674308,99730.0,99724.0,0.001]
[1733659460006,0.00674308,99730.0,99722.0,0.025]
[1733659460432,0.00674308,99730.0,99723.0,0.0074706]
[1733659460658,0.00774308,99730.0,99721.0,0.03047044]
[1733659460890,0.00774308,99730.0,99723.0,0.023]
[1733659461103,0.00674308,99730.0,99723.0,0.023]
[1733659461311,0.00674308,99730.0,99720.0,0.001]
[1733659461312,0.00774308,99730.0,99721.0,0.03047051]
[1733659461520,0.00674308,99730.0,99722.0,0.00747051]
[1733659461961,0.00774308,99730.0,99724.0,0.023]
[1733659462192,0.00774308,99730.0,99722.0,0.023]
[1733659462433,0.180489,99729.0,99722.0,0.023]
[1733659462871,0.180489,99729.0,99717.0,0.00050205]
[1733659462872,0.00674349,99728.0,99719.0,0.023]
[1733659463074,0.00674349,99728.0,99719.0,0.02350207]
[1733659463305,0.00674349,99728.0,99721.0,0.023]
[1733659463513,0.00674349,99728.0,99719.0,0.00050207]
[1733659463987,0.00674349,99728.0,99717.0,0.00797479]
[1733659464189,0.00674349,99728.0,99719.0,0.00150207]
[1733659464411,0.00674349,99728.0,99720.0,0.023]
[1733659464822,0.00674349,99728.0,99719.0,0.02350207]
[1733659465494,0.00674349,99728.0,99719.0,0.00050207]
[1733659466604,0.00674349,99728.0,99710.0,0.26533298]
[1733659466605,0.10002951,99727.0,99715.0,0.023]
[1733659466831,0.180507,99719.0,99711.0,0.023]
[1733659467233,0.00673678,99718.0,99711.0,0.023]
[1733659467820,0.00673678,99718.0,99713.0,0.023]
[1733659468126,0.00673678,99718.0,99715.0,0.001]
[1733659468334,0.00673678,99718.0,99713.0,0.023]
[1733659468497,0.00673678,99718.0,99711.0,0.023]
[1733659469739,0.00673678,99718.0,99711.0,0.029]
[1733659470002,0.00673678,99718.0,99711.0,0.025]
[1733659470211,0.00673678,99718.0,99711.0,0.023]
[1733659470356,0.00673678,99718.0,99711.0,0.027]
[1733659470571,0.00673678,99718.0,99711.0,0.029]
[1733659471374,0.18051,99717.0,99711.0,0.029]
[1733659471651,0.00672512,99716.0,99711.0,0.029]
[1733659472709,0.180514,99715.0,99711.0,0.025]
[1733659472908,0.180514,99715.0,99711.0,0.023]
[1733659473119,0.180518,99713.0,99711.0,0.027]
[1733659473339,0.180518,99713.0,99711.0,0.025]
[1733659473779,0.180518,99713.0,99711.0,0.027]
[1733659473780,0.00666183,99712.0,99711.0,0.027]
[1733659474017,0.00666183,99712.0,99711.0,0.026]
[1733659474521,0.00666183,99712.0,99711.0,0.027]
[1733659474722,0.00666183,99712.0,99711.0,0.023]
[1733659474940,0.00666183,99712.0,99711.0,0.026]
[1733659476249,0.00766183,99712.0,99711.0,0.028]
[1733659476493,0.00666183,99712.0,99711.0,0.026]
[1733659476694,0.10894491,99712.0,99711.0,0.003]
[1733659476896,0.10894491,99712.0,99710.0,0.00230998]
[1733659477086,0.28180421,99711.0,99710.0,0.00230998]
[1733659477308,0.28055051,99711.0,99710.0,0.00230998]
[1733659477528,0.28720651,99711.0,99710.0,0.00230998]
[1733659478146,0.28720651,99711.0,99710.0,0.02530998]
[1733659480131,0.28820651,99711.0,99710.0,0.02530998]
[1733659482546,0.10768551,99711.0,99710.0,0.02530998]
[1733659482757,0.007656,99711.0,99710.0,0.02530998]
[1733659483231,0.001,99711.0,99710.0,0.02530998]
[1733659483438,0.00764609,99711.0,99710.0,0.02530998]
[1733659485825,0.00664609,99711.0,99710.0,0.02530998]
[1733659486156,0.180518,99713.0,99711.0,0.023]
[1733659487674,0.181518,99713.0,99711.0,0.023]
[1733659490022,0.181518,99713.0,99710.0,0.00230998]
[1733659490023,0.260321,99711.0,99710.0,0.00230998]
[1733659490603,0.307521,99711.0,99710.0,0.00230998]
[1733659492614,0.40755051,99711.0,99710.0,0.00230998]
[1733659493951,0.41418571,99711.0,99710.0,0.00230998]
[1733659494812,0.41618571,99711.0,99710.0,0.00230998]
[1733659495019,0.42018571,99711.0,99710.0,0.00230998]
[1733659495923,0.41818571,99711.0,99710.0,0.00230998]
[1733659496332,0.42018571,99711.0,99710.0,0.00230998]
[1733659504210,0.57018571,99711.0,99710.0,0.00230998]
[1733659507178,0.59055048,99711.0,99710.0,0.00230998]
[1733659508059,0.180553,99694.0,99691.0,0.00107189]
[1733659508265,0.180556,99692.0,99691.0,0.00107189]
[1733659508493,0.18715571,99692.0,99691.0,0.00107189]
[1733659509645,0.18715571,99692.0,99691.0,0.00307189]
[1733659510097,0.18715571,99692.0,99691.0,0.00107189]
[1733659510613,0.18715571,99692.0,99691.0,0.00307189]
[1733659511285,0.18715571,99692.0,99691.0,0.00707189]
[1733659512371,0.19728747,99692.0,99691.0,0.00707189]
[1733659512597,0.01673147,99692.0,99691.0,0.00707189]
[1733659512812,0.00659971,99692.0,99691.0,0.00707189]
[1733659513236,0.180538,99702.0,99691.0,0.00707189]
[1733659513468,0.180541,99700.0,99691.0,0.00707189]
[1733659513740,0.00656824,99701.0,99695.0,0.023]
[1733659513959,0.18109918,99711.0,99696.0,0.00050265]
[1733659514215,0.18109918,99711.0,99697.0,0.00050265]
[1733659514422,0.00656824,99710.0,99699.0,0.023]
[1733659515285,0.180525,99709.0,99697.0,0.02350265]
[1733659515503,0.00656824,99710.0,99699.0,0.023]
[1733659515720,0.00057718,99711.0,99700.0,0.180541]
[1733659515955,0.00656824,99709.0,99700.0,0.180541]
[1733659516184,0.003,99710.0,99700.0,0.180541]
[1733659516630,0.00757842,99709.0,99700.0,0.180541]
[1733659516860,0.00757842,99709.0,99708.0,0.203527]
[1733659517083,0.003,99710.0,99709.0,0.023]
[1733659517294,0.00057718,99711.0,99709.0,0.023]
[1733659517545,0.00057718,99711.0,99710.0,0.20402542]
[1733659517771,0.00057718,99711.0,99710.0,0.203523]
[1733659518212,0.0017318,99720.0,99719.0,0.180507]
[1733659518447,0.0017318,99720.0,99719.0,0.18066425]
[1733659519092,0.0017318,99720.0,99719.0,0.20366425]
[1733659519998,0.0017318,99720.0,99719.0,0.28336425]
[1733659520197,0.0017318,99720.0,99719.0,0.28436425]
[1733659520407,0.0017318,99720.0,99719.0,0.20466425]
[1733659520658,0.0027318,99720.0,99719.0,0.20466425]
[1733659520874,0.0027318,99720.0,99719.0,0.20366425]
[1733659520875,0.0017318,99720.0,99719.0,0.20366425]
[1733659521078,0.0017318,99720.0,99719.0,0.20566425]
[1733659521336,0.0017318,99720.0,99719.0,0.20966425]
[1733659521579,0.0017318,99720.0,99719.0,0.02915725]
[1733659521762,0.0017318,99720.0,99719.0,0.02965933]
[1733659522067,0.0017318,99720.0,99719.0,0.02915725]
[1733659522283,0.0017318,99720.0,99719.0,0.00415725]
[1733659522733,0.0083908,99720.0,99719.0,0.00415725]
[1733659523058,0.0083908,99720.0,99719.0,0.00615725]
[1733659527164,0.0017318,99720.0,99719.0,0.00615725]
[1733659527610,0.0017318,99720.0,99719.0,0.02915725]
[1733659533200,0.0017318,99720.0,99719.0,0.02965939]
[1733659535223,0.1269,99745.0,99733.0,0.180481]
[1733659535434,0.00125331,99744.0,99733.0,0.180481]
[1733659535654,0.00478531,99739.0,99733.0,0.180481]
[1733659536098,0.00478531,99739.0,99734.0,0.18048]
[1733659536355,0.00478531,99739.0,99737.0,0.180472]
[1733659536593,0.0458,99745.0,99737.0,0.180472]
[1733659537039,0.00878531,99739.0,99737.0,0.180472]
[1733659537247,0.004,99739.0,99737.0,0.180472]
[1733659537738,0.0037314,99740.0,99737.0,0.180472]
[1733659537965,0.0037314,99740.0,99737.0,0.360946]
[1733659538170,0.004,99739.0,99738.0,0.023]
[1733659538383,0.0017314,99740.0,99739.0,0.203471]
[1733659539883,0.0017314,99740.0,99734.0,0.023]
[1733659540095,0.180471,99739.0,99729.0,0.023]
[1733659540310,0.0017314,99740.0,99727.0,0.023]
[1733659540311,0.0037314,99740.0,99727.0,0.023]
[1733659540520,0.00478961,99738.0,99729.0,0.023]
[1733659540737,0.0047314,99740.0,99729.0,0.023]
[1733659540956,0.00478961,99737.0,99729.0,0.023]
[1733659541163,0.082,99739.0,99729.0,0.023]
[1733659541387,0.00478961,99736.0,99729.0,0.023]
[1733659541607,0.082,99739.0,99729.0,0.023]
[1733659541816,0.00478961,99735.0,99729.0,0.023]
[1733659542024,0.082,99739.0,99729.0,0.023]
[1733659542233,0.00478961,99734.0,99729.0,0.023]
[1733659542440,0.082,99739.0,99729.0,0.023]
[1733659542683,0.00478961,99733.0,99727.0,0.023]
[1733659542924,0.082,99739.0,99727.0,0.023]
[1733659542925,0.082,99739.0,99729.0,0.023]
[1733659543152,0.00478961,99732.0,99729.0,0.023]
[1733659543360,0.082,99739.0,99729.0,0.023]
[1733659543806,0.00478961,99738.0,99729.0,0.023]
[1733659544262,0.00478961,99738.0,99729.0,0.002]
[1733659544480,0.00478961,99738.0,99730.0,0.023]
[1733659544945,0.00478961,99738.0,99727.0,0.001]
[1733659545398,0.00478961,99738.0,99729.0,0.023]
[1733659545903,0.00478961,99738.0,99717.0,0.1317]
[1733659545904,0.18172726,99737.0,99722.0,0.1805]
[1733659546118,0.18172726,99737.0,99723.0,0.023]
[1733659546364,0.18172726,99737.0,99722.0,0.023]
[1733659546365,0.180482,99733.0,99722.0,0.023]
[1733659546571,0.082,99728.0,99713.0,0.180517]
[1733659546778,0.082,99728.0,99708.0,0.180525]
[1733659546779,0.180494,99726.0,99708.0,0.180525]
[1733659547012,0.180498,99724.0,99708.0,0.180525]
[1733659547666,0.00479245,99723.0,99722.0,0.001]
[1733659548849,0.00479245,99723.0,99716.0,0.180512]
[1733659549087,0.00479245,99723.0,99719.0,0.00315725]
[1733659549305,0.001,99724.0,99719.0,0.00715725]
[1733659549522,0.18202951,99728.0,99719.0,0.00015725]
[1733659549731,0.18202951,99728.0,99722.0,0.003]
[1733659549969,0.001,99723.0,99722.0,0.007]
[1733659550213,0.00479245,99727.0,99722.0,0.003]
[1733659550418,0.00479245,99727.0,99719.0,0.00015725]
[1733659550419,0.001,99724.0,99719.0,0.00415725]
[1733659550658,0.001,99724.0,99719.0,0.00715725]
[1733659550868,0.180496,99725.0,99719.0,0.00315725]
[1733659551079,0.00479245,99723.0,99719.0,0.00315725]
[1733659551309,0.00125347,99725.0,99719.0,0.00315725]
[1733659551527,0.6958627,99805.0,99719.0,0.00315725]
[1733659551528,0.180504,99721.0,99719.0,0.00315725]
[1733659551737,0.00125356,99720.0,99719.0,0.00315725]
[1733659552025,0.18803417,99720.0,99719.0,0.00015725]
[1733659552234,0.33803417,99720.0,99719.0,0.00015725]
[1733659552461,0.33678061,99720.0,99719.0,0.00015725]
[1733659553640,0.34661478,99720.0,99719.0,0.00015725]
[1733659553853,0.35361478,99720.0,99719.0,0.00015725]
[1733659562261,0.45161478,99720.0,99719.0,0.00015725]
[1733659563144,0.75245478,99720.0,99719.0,0.00015725]
[1733659569318,0.75045478,99720.0,99719.0,0.00015725]
[1733659569529,0.74545478,99720.0,99719.0,0.00015725]
[1733659569752,0.76576946,99720.0,99719.0,0.00015725]
[1733659569956,0.75445478,99720.0,99719.0,0.00015725]
[1733659570630,0.75845478,99720.0,99719.0,0.00015725]
[1733659574762,0.70845478,99720.0,99719.0,0.00015725]
[1733659576497,0.62645478,99720.0,99719.0,0.00015725]
[1733659576726,0.62818618,99720.0,99719.0,0.00015725]
[1733659577175,0.58018618,99720.0,99719.0,0.00015725]
[1733659578023,0.3203225,99720.0,99719.0,0.00015725]
[1733659578252,0.3203225,99720.0,99719.0,0.07645725]
[1733659578710,0.3073225,99720.0,99719.0,0.07645725]
[1733659578913,0.3203225,99720.0,99719.0,0.07645725]
[1733659579087,0.3113225,99720.0,99719.0,0.07645725]
[1733659579524,0.3133225,99720.0,99719.0,0.07645725]
[1733659580178,0.3093225,99720.0,99719.0,0.07645725]
[1733659580384,0.3073225,99720.0,99719.0,0.07645725]
[1733659580610,0.3083225,99720.0,99719.0,0.07645725]
[1733659581066,0.3073225,99720.0,99719.0,0.07645725]
[1733659581301,0.3073225,99720.0,99719.0,0.07745725]
[1733659582337,0.3073225,99720.0,99719.0,0.07845725]
[1733659584201,0.3073225,99720.0,99719.0,0.00215725]
[1733659587877,0.3073225,99720.0,99719.0,0.00190652]
[1733659590503,0.40735201,99720.0,99719.0,0.00190652]
[1733659590951,0.4173479,99720.0,99719.0,0.00190652]
[1733659591632,0.78901715,99720.0,99719.0,0.00190652]
[1733659591847,0.9739106,99720.0,99719.0,0.00190652]
[1733659592074,1.94808095,99720.0,99719.0,0.00190652]
[1733659592332,2.12793888,99720.0,99719.0,0.00190652]
[1733659592543,1.94808095,99720.0,99719.0,0.00190652]
[1733659592765,0.412921,99711.0,99710.0,0.0008659]
[1733659592992,0.81379051,99711.0,99710.0,0.00104813]
[1733659593244,0.81853478,99711.0,99710.0,0.00104813]
[1733659593880,0.95505264,99711.0,99710.0,1.3e-07]
[1733659594147,0.95805264,99711.0,99710.0,1.3e-07]
[1733659594356,0.86803478,99711.0,99710.0,1.3e-07]
[1733659594991,0.95805892,99711.0,99710.0,1.3e-07]
[1733659595243,0.87403478,99711.0,99710.0,1.3e-07]
[1733659595665,1.00907203,99711.0,99710.0,1.3e-07]
[1733659595884,0.87403478,99711.0,99710.0,1.3e-07]
[1733659597626,0.97385012,99711.0,99710.0,1.3e-07]
[1733659598031,0.87403478,99711.0,99710.0,1.3e-07]
[1733659599742,0.87403478,99711.0,99710.0,0.00086583]
[1733659601214,1.00903985,99711.0,99710.0,0.00086583]
[1733659601762,1.00903483,99711.0,99710.0,0.00086583]
[1733659602014,0.87403478,99711.0,99710.0,0.00086583]
[1733659603330,0.74513478,99711.0,99710.0,0.00086583]
[1733659603444,0.59513478,99711.0,99710.0,0.00086583]
[1733659607842,0.74513478,99711.0,99710.0,0.00086583]
[1733659620136,0.82063478,99711.0,99710.0,0.00086583]
[1733659622291,0.92045012,99711.0,99710.0,0.00086583]
[1733659622506,0.82063478,99711.0,99710.0,0.00086583]
[1733659629000,1.0317622,99711.0,99710.0,0.00086583]
[1733659629275,0.89671517,99711.0,99710.0,0.00086583]
[1733659630238,1.07680427,99711.0,99710.0,0.00086583]
[1733659631286,1.12173946,99711.0,99710.0,0.00086583]
[1733659631458,0.89671517,99711.0,99710.0,0.00086583]
[1733659631684,1.07685588,99711.0,99710.0,0.00086583]
[1733659632686,0.89671517,99711.0,99710.0,0.00086583]
[1733659633351,1.12173946,99711.0,99710.0,0.00086583]
[1733659633528,0.89671517,99711.0,99710.0,0.00086583]
[1733659633879,1.0838795,99711.0,99710.0,0.00086583]
[1733659634374,0.90365912,99711.0,99710.0,0.00086583]
[1733659634693,1.05293867,99711.0,99710.0,0.00086583]
[1733659634893,1.33576654,99711.0,99710.0,0.00086583]
[1733659635102,1.12899084,99711.0,99710.0,0.00086583]
[1733659635909,1.22880618,99711.0,99710.0,0.00086583]
[1733659636165,1.12899084,99711.0,99710.0,0.00086583]
[1733659637121,0.90366414,99711.0,99710.0,0.00086583]
[1733659642727,0.90366414,99711.0,99682.0,0.023]
[1733659642728,0.180569,99685.0,99682.0,0.023]
[1733659643199,0.180572,99683.0,99682.0,0.023]
[1733659643403,0.01166922,99684.0,99682.0,0.023]
[1733659643844,0.180569,99685.0,99682.0,0.023]
[1733659643845,0.01167149,99683.0,99682.0,0.023]
[1733659644065,0.01167149,99683.0,99682.0,0.026]
[1733659644272,0.180569,99685.0,99682.0,0.026]
[1733659644557,0.01166569,99683.0,99682.0,0.026]
[1733659644770,0.180569,99685.0,99682.0,0.023]
[1733659644979,0.01166569,99683.0,99682.0,0.025]
[1733659645194,0.19152447,99685.0,99682.0,0.025]
[1733659645400,0.01166342,99684.0,99682.0,0.028]
[1733659645614,0.01166569,99683.0,99682.0,0.028]
[1733659645823,0.01095547,99685.0,99682.0,0.025]
[1733659646036,0.01166342,99683.0,99682.0,0.025]
[1733659646246,0.001,99685.0,99682.0,0.025]
[1733659646428,0.01166569,99683.0,99682.0,0.025]
[1733659646686,0.001,99685.0,99682.0,0.025]
[1733659647144,0.01166342,99684.0,99682.0,0.028]
[1733659647595,0.01166342,99684.0,99682.0,0.026]
[1733659647822,0.001,99683.0,99682.0,0.028]
[1733659648053,0.180565,99688.0,99682.0,0.023]
[1733659648283,0.01166342,99683.0,99682.0,0.023]
[1733659648510,0.001,99684.0,99682.0,0.028]
[1733659648746,0.01166569,99683.0,99682.0,0.026]
[1733659648974,0.01266569,99683.0,99682.0,0.025]
[1733659649187,0.001,99683.0,99682.0,0.025]
[1733659649396,0.01266569,99683.0,99682.0,0.025]
[1733659649604,0.001,99683.0,99682.0,0.025]
[1733659649796,0.01266569,99683.0,99682.0,0.025]
[1733659650811,0.01266569,99683.0,99682.0,0.028]
[1733659651412,0.01266569,99683.0,99682.0,0.005]
[1733659661719,0.14806751,99684.0,99682.0,0.005]
[1733659661947,0.00973743,99683.0,99682.0,0.005]
[1733659663656,0.00973743,99683.0,99682.0,0.025]
[1733659663827,0.180563,99689.0,99682.0,0.028]
[1733659664008,0.00973743,99683.0,99682.0,0.028]
[1733659664201,0.180563,99689.0,99682.0,0.028]
[1733659664406,0.180563,99689.0,99682.0,0.025]
[1733659664607,0.180563,99689.0,99682.0,0.023]
[1733659664865,0.00973516,99688.0,99682.0,0.003]
[1733659665066,0.00973516,99688.0,99682.0,0.006]
[1733659665269,0.00973516,99688.0,99682.0,0.003]
[1733659665442,0.19065628,99692.0,99682.0,0.003]
[1733659665662,0.00973516,99687.0,99682.0,0.003]
[1733659665823,0.180563,99688.0,99681.0,0.02357718]
[1733659666220,0.00973516,99686.0,99681.0,0.02357718]
[1733659666435,0.19065628,99692.0,99681.0,0.02357718]
[1733659666643,0.00973516,99687.0,99681.0,0.02357718]
[1733659666826,0.180563,99689.0,99682.0,0.002]
[1733659667259,0.180563,99689.0,99681.0,0.02357718]
[1733659667441,0.00973516,99688.0,99682.0,0.003]
[1733659667666,0.19029816,99688.0,99681.0,0.02457718]
[1733659667893,0.00973516,99687.0,99681.0,0.02457718]
[1733659668062,0.00973516,99687.0,99682.0,0.003]
[1733659668274,0.00973516,99687.0,99681.0,0.02357718]
[1733659668488,0.00973516,99687.0,99681.0,0.02557718]
[1733659668719,0.00973516,99687.0,99682.0,0.003]
[1733659668921,0.00973516,99687.0,99681.0,0.02557718]
[1733659669334,0.01073516,99687.0,99682.0,0.003]
[1733659670230,0.01073516,99687.0,99682.0,0.005]
[1733659670721,0.180566,99686.0,99682.0,0.005]
[1733659671100,0.00973738,99685.0,99682.0,0.002]
[1733659671715,0.00973738,99685.0,99681.0,0.02357718]
[1733659671938,0.00973738,99685.0,99682.0,0.003]
[1733659672240,0.00973738,99685.0,99681.0,0.02357718]
[1733659672643,0.00973738,99685.0,99682.0,0.003]
[1733659672644,0.01073738,99685.0,99682.0,0.003]
[1733659672989,0.01073738,99685.0,99682.0,0.005]
[1733659673648,0.01073738,99685.0,99682.0,0.003]
[1733659673843,0.01073738,99685.0,99682.0,0.006]
[1733659674053,0.00973738,99685.0,99682.0,0.003]
[1733659674527,0.01073738,99685.0,99682.0,0.003]
[1733659674903,0.00973738,99685.0,99682.0,0.003]
[1733659675110,0.01073738,99685.0,99682.0,0.006]
[1733659676987,0.180563,99688.0,99682.0,0.006]
[1733659677204,0.00811448,99684.0,99682.0,0.006]
[1733659677424,0.180563,99688.0,99682.0,0.006]
[1733659677694,0.00811497,99683.0,99682.0,0.029]
[1733659677893,0.180563,99688.0,99682.0,0.026]
[1733659678138,0.180563,99688.0,99681.0,0.02357718]
[1733659678139,0.00811725,99683.0,99681.0,0.02357718]
[1733659678265,0.180563,99688.0,99682.0,0.003]
[1733659678455,0.180563,99688.0,99681.0,0.02357718]
[1733659678860,0.001,99683.0,99682.0,0.003]
[1733659679090,0.180563,99688.0,99681.0,0.02357718]
[1733659679669,0.180563,99688.0,99682.0,0.002]
[1733659680075,0.180563,99688.0,99681.0,0.02357718]
[1733659680250,0.180563,99688.0,99681.0,0.02557718]
[1733659680865,0.0008659,99690.0,99682.0,0.004]
[1733659681193,0.0008659,99690.0,99682.0,0.006]
[1733659681433,0.180561,99689.0,99682.0,0.002]
[1733659682405,0.180561,99689.0,99681.0,0.02357718]
[1733659682621,0.180561,99689.0,99682.0,0.004]
[1733659682830,0.0008659,99690.0,99682.0,0.004]
[1733659683033,0.0008659,99690.0,99683.0,0.02350313]
[1733659683833,0.0008659,99690.0,99683.0,0.00050313]
[1733659684429,0.0008659,99690.0,99684.0,0.18057]
[1733659684638,0.0008659,99690.0,99685.0,0.02350299]
[1733659684822,0.0008659,99690.0,99685.0,0.023]
[1733659685963,0.0008659,99690.0,99687.0,0.023]
[1733659686115,0.0008659,99690.0,99687.0,0.02350294]
[1733659687616,0.0008659,99690.0,99687.0,0.02650294]
[1733659688487,0.0008659,99690.0,99689.0,0.023]
[1733659688715,0.0008659,99690.0,99689.0,0.02350294]
[1733659689586,0.0008659,99690.0,99689.0,0.02550294]
[1733659690507,0.0008659,99690.0,99689.0,0.02850294]
[1733659691912,0.000866,99700.0,99689.0,0.02850294]
[1733659692142,0.000866,99700.0,99699.0,0.203543]
[1733659692594,0.14939551,99700.0,99689.0,0.005]
[1733659692821,0.231,99697.0,99689.0,0.003]
[1733659693099,0.231,99697.0,99681.0,0.00057718]
[1733659693100,0.180574,99682.0,99681.0,0.00057718]
[1733659693316,0.562414,99682.0,99681.0,0.00057718]
[1733659693544,0.57094101,99682.0,99681.0,0.00057718]
[1733659694002,0.39036701,99682.0,99681.0,0.00057718]
[1733659694685,0.39136701,99682.0,99681.0,0.00457718]
[1733659695600,0.43986701,99682.0,99681.0,0.00457718]
[1733659696485,0.43886701,99682.0,99681.0,0.00357718]
[1733659696929,0.43986701,99682.0,99681.0,0.00057718]
[1733659697156,0.43886701,99682.0,99681.0,0.00057718]
[1733659697380,0.43986701,99682.0,99681.0,0.00057718]
[1733659710792,0.43986701,99682.0,99666.0,0.00050337]
[1733659711049,0.43986701,99682.0,99651.0,0.015]
[1733659711050,0.180612,99661.0,99651.0,0.015]
[1733659711264,0.51084151,99661.0,99651.0,0.015]
[1733659711488,0.81168151,99661.0,99651.0,0.015]
[1733659711711,0.95712481,99661.0,99651.0,0.015]
[1733659711956,1.00218935,99661.0,99651.0,0.015]
[1733659712180,0.86699572,99661.0,99651.0,0.015]
[1733659712640,1.15079293,99661.0,99651.0,0.015]
[1733659712858,1.37611565,99661.0,99651.0,0.015]
[1733659713094,1.37911565,99661.0,99651.0,0.015]
[1733659713346,1.38793423,99661.0,99651.0,0.015]
[1733659713563,0.87996826,99661.0,99651.0,0.015]
[1733659713783,0.9797836,99661.0,99651.0,0.015]
[1733659714226,1.4483204,99661.0,99660.0,1e-07]
[1733659714452,1.12074211,99661.0,99660.0,1e-07]
[1733659714686,0.88596826,99661.0,99660.0,1e-07]
[1733659714918,1.06591294,99661.0,99660.0,1e-07]
[1733659715352,1.02085969,99661.0,99660.0,1e-07]
[1733659715866,0.88596826,99661.0,99660.0,1e-07]
[1733659720783,0.88900203,99661.0,99660.0,1e-07]
[1733659724268,0.92095242,99661.0,99660.0,1e-07]
[1733659726257,0.9180587,99661.0,99660.0,1e-07]
[1733659727140,0.88610831,99661.0,99660.0,1e-07]
[1733659728184,0.75707454,99661.0,99660.0,1e-07]
[1733659728465,0.76102267,99661.0,99660.0,1e-07]
[1733659729279,0.75105013,99661.0,99660.0,1e-07]
[1733659729963,0.60105013,99661.0,99660.0,1e-07]
[1733659730193,0.32040862,99661.0,99660.0,1e-07]
[1733659731054,0.31440862,99661.0,99660.0,1e-07]
[1733659731281,0.31140862,99661.0,99660.0,0.0010001]
[1733659735447,0.41143813,99661.0,99660.0,0.0010001]
[1733659737476,0.42174607,99661.0,99660.0,0.0010001]
[1733659737902,0.46894607,99661.0,99660.0,0.0010001]
[1733659738135,0.61894607,99661.0,99660.0,0.0010001]